bitfinex/quotes_ETHUSD_20260102
["timestamp","ask_amount","ask_price","bid_price","bid_amount"]
[1767372440587,0.002,3124.2,3122.7,2.42144822]
[1767372440913,0.002,3124.2,3122.9,2.42144822]
[1767372441115,0.002,3124.2,3123.0,0.56237026]
[1767372441499,0.002,3124.2,3122.9,2.42144822]
[1767372444016,0.002,3124.2,3123.0,0.838]
[1767372444217,0.002,3124.2,3123.1,2.42144822]
[1767372444718,0.002,3124.6,3123.5,2.42144822]
[1767372444897,0.002,3124.6,3123.7,2.42144822]
[1767372445110,0.002,3124.8,3123.8,2.74739304]
[1767372445313,3.19959045,3125.4,3123.9,2.42144822]
[1767372445634,0.002,3125.5,3123.9,2.42144822]
[1767372446337,0.002,3125.5,3123.8,18.51903778]
[1767372446338,0.002,3126.1,3124.9,2.42144822]
[1767372446511,0.002,3126.1,3125.0,3.41879212]
[1767372446711,0.002,3126.1,3123.9,3.372]
[1767372446712,0.002,3126.1,3125.2,2.38750925]
[1767372447108,0.002,3126.6,3125.4,2.38750925]
[1767372447346,0.002,3127.2,3125.7,2.38750925]
[1767372447508,0.002,3127.2,3125.9,2.38750925]
[1767372447909,0.002,3127.2,3125.2,2.38750925]
[1767372447910,3.18258308,3127.1,3125.2,2.38750925]
[1767372448228,3.18258308,3127.1,3123.6,0.05]
[1767372448229,2.66304139,3127.0,3124.9,0.837]
[1767372448536,2.66304139,3127.0,3123.8,3.52715969]
[1767372448537,2.34458308,3126.6,3123.8,3.52715969]
[1767372448710,2.34458308,3126.4,3124.2,2.38750925]
[1767372448912,2.34458308,3126.2,3124.2,3.22450925]
[1767372449129,2.34458308,3126.0,3123.8,0.32594482]
[1767372449312,2.4336843,3125.6,3123.4,0.837]
[1767372449635,0.838,3125.5,3123.8,2.41292484]
[1767372449823,0.838,3125.5,3123.9,3.24992484]
[1767372450026,0.03999488,3125.4,3123.9,3.24992484]
[1767372450211,2.47367918,3125.4,3123.5,0.84510114]
[1767372450407,0.33116792,3125.3,3123.8,5.61414631]
[1767372450706,0.838,3125.4,3123.9,2.42102828]
[1767372450906,0.03999616,3125.3,3123.8,0.837]
[1767372451243,6.39938564,3125.3,3123.8,3.2580275]
[1767372451606,3.199181,3125.8,3123.9,2.41292484]
[1767372451802,7.236362,3125.8,3124.1,2.41292484]
[1767372452106,0.99085032,3125.7,3124.2,0.24210201]
[1767372452502,0.99085032,3125.7,3124.2,0.25019469]
[1767372452809,2.6721412,3125.9,3124.4,2.41292484]
[1767372452810,1.0764569,3125.9,3124.4,2.41292484]
[1767372453008,0.002,3126.3,3124.6,2.41292484]
[1767372453234,0.002,3126.3,3125.0,2.41292484]
[1767372453435,0.002,3126.3,3125.1,3.24992484]
[1767372453740,0.002,3126.3,3125.2,0.837]
[1767372453906,0.002,3126.3,3125.3,0.32499248]
[1767372454638,0.002,3126.3,3124.9,2.41292484]
[1767372454823,0.002,3126.3,3125.3,2.41292484]
[1767372455020,0.002,3126.3,3124.8,9.60867788]
[1767372455021,0.002,3126.3,3125.4,3.24992484]
[1767372455216,6.3959066,3127.0,3125.5,5.61241292]
[1767372455416,0.838,3127.1,3125.6,2.41292484]
[1767372455716,3.19977074,3127.2,3125.8,2.41292484]
[1767372455717,0.002,3127.2,3125.8,2.41292484]
[1767372455908,3.19983324,3127.2,3125.9,3.24992484]
[1767372456339,0.002,3127.2,3126.0,2.41292484]
[1767372456638,3.19978573,3127.2,3126.0,2.41292484]
[1767372456827,0.002,3127.2,3126.0,2.41292484]
[1767372457025,0.002,3127.2,3126.1,0.32499248]
[1767372457746,0.002,3127.2,3126.2,3.372]
[1767372457942,0.002,3127.2,3126.1,3.52384121]
[1767372458236,0.04197185,3127.2,3126.1,0.32499248]
[1767372458441,0.002,3127.2,3126.1,5.61177475]
[1767372458956,0.002,3127.2,3125.8,0.837]
[1767372459121,0.002,3127.2,3125.9,2.41292484]
[1767372459742,0.002,3127.2,3125.8,0.00805262]
[1767372460036,2.4356843,3127.2,3125.7,0.837]
[1767372460240,0.28354156,3127.1,3125.7,0.837]
[1767372460550,0.03997441,3127.0,3125.7,0.837]
[1767372461025,0.24356843,3127.1,3125.7,0.837]
[1767372461420,0.24356843,3127.1,3125.6,3.19936558]
[1767372461421,6.3959066,3127.0,3125.4,2.41292484]
[1767372461636,0.6639475,3126.9,3125.5,1.07829248]
[1767372461844,3.31166127,3126.8,3124.9,2.41292484]
[1767372462065,2.47366255,3126.7,3124.9,2.41292484]
[1767372462347,2.4336843,3126.6,3124.5,0.84507208]
[1767372462532,2.4336843,3126.6,3123.7,3.20128393]
[1767372462533,0.8779808,3126.5,3124.7,2.41292484]
[1767372462738,0.838,3126.8,3125.0,2.41292484]
[1767372462933,2.47366255,3126.7,3124.8,2.73791732]
[1767372463123,2.4336843,3126.7,3124.8,2.74598978]
[1767372463324,2.4336843,3126.7,3124.9,0.837]
[1767372463516,2.4336843,3126.5,3125.0,0.837]
[1767372463715,1.20287716,3126.4,3125.0,0.84507194]
[1767372463923,0.03998336,3126.3,3124.8,2.73791732]
[1767372464123,0.838,3126.2,3124.8,2.73791732]
[1767372464651,0.838,3126.2,3124.3,3.20063195]
[1767372464652,2.47367022,3126.1,3124.3,2.41292484]
[1767372464934,1.20487716,3126.4,3124.7,5.61315028]
[1767372465131,0.838,3126.3,3124.7,2.4210019]
[1767372465335,0.838,3126.3,3124.6,0.837]
[1767372465336,2.47366894,3126.2,3124.6,0.837]
[1767372465538,8.83143228,3126.1,3124.6,0.837]
[1767372465750,0.88714169,3126.0,3124.7,2.4210056]
[1767372466272,3.19880016,3126.2,3124.7,2.4210056]
[1767372466955,0.84,3126.4,3124.8,14.361147]
[1767372467123,3.20057759,3126.4,3124.9,2.42100049]
[1767372467319,6.39915518,3126.4,3124.9,2.41292484]
[1767372467546,6.39915518,3126.4,3124.8,0.837]
[1767372467547,2.4336843,3126.3,3124.8,0.837]
[1767372467748,1.20314171,3126.2,3124.9,0.00807732]
[1767372467919,1.20314171,3126.2,3124.8,2.41292484]
[1767372468540,3.63682601,3126.2,3124.6,0.837]
[1767372468742,3.63682601,3126.2,3124.4,3.2005443]
[1767372468941,3.63682601,3126.2,3124.5,0.837]
[1767372469254,0.36768094,3126.1,3124.6,0.40375443]
[1767372469418,9.59692896,3126.0,3124.6,0.40375443]
[1767372469621,0.838,3125.9,3124.4,0.837]
[1767372469920,2.4336843,3125.7,3124.1,0.837]
[1767372470265,2.4336843,3125.7,3123.9,0.00809435]
[1767372470423,2.4336843,3125.7,3124.1,0.00809383]
[1767372470620,2.4336843,3125.7,3123.9,2.41292484]
[1767372470846,12.79590528,3126.0,3123.9,2.41292484]
[1767372470847,2.4336843,3125.5,3123.9,2.41292484]
[1767372471022,2.4336843,3125.5,3124.1,3.20091448]
[1767372471373,0.32716843,3125.6,3124.4,3.20057138]
[1767372471574,8.83163694,3126.0,3124.5,2.42101533]
[1767372471575,0.838,3125.8,3124.5,2.42101533]
[1767372472379,0.838,3125.8,3124.6,0.00808678]
[1767372472691,0.838,3125.8,3124.8,0.001]
[1767372472987,3.19895076,3126.1,3124.8,0.001]
[1767372473264,0.0399872,3126.0,3124.8,0.001]
[1767372473466,3.23906427,3126.0,3124.8,0.001]
[1767372473670,6.47059643,3126.1,3124.8,0.00908051]
[1767372473843,10.07320364,3126.1,3124.9,0.34514347]
[1767372474047,2.4336843,3126.0,3124.8,0.001]
[1767372474287,3.20059544,3126.4,3125.0,2.41292484]
[1767372474579,6.39919088,3126.4,3125.0,3.24992484]
[1767372474880,0.002,3126.4,3125.1,0.00807335]
[1767372475166,0.002,3126.4,3125.1,2.42099819]
[1767372475382,2.4356843,3127.6,3125.8,2.41292484]
[1767372475541,0.838,3127.4,3126.0,14.80467284]
[1767372475739,3.19747605,3127.5,3126.1,2.41292484]
[1767372475972,0.838,3127.5,3126.1,2.41292484]
[1767372476188,2.4356843,3127.6,3126.1,2.41292484]
[1767372476189,0.002,3127.6,3126.1,2.41292484]
[1767372476865,0.002,3127.6,3126.2,3.24992484]
[1767372476866,3.1974711,3127.5,3126.2,3.24992484]
[1767372477063,3.19744204,3127.5,3125.9,3.19907866]
[1767372477261,3.19744204,3127.5,3126.0,2.73283271]
[1767372477488,3.19933981,3127.6,3126.1,3.19887399]
[1767372477774,6.39673466,3127.6,3126.1,3.19887399]
[1767372478069,0.002,3127.6,3126.2,2.41292484]
[1767372478271,0.002,3127.6,3126.2,3.24992484]
[1767372478780,2.4356843,3127.7,3126.8,2.41292484]
[1767372478781,0.002,3127.7,3126.8,2.41292484]
[1767372478977,0.002,3127.9,3127.0,2.41292484]
[1767372479347,0.002,3129.0,3127.0,2.41292484]
[1767372479577,0.002,3129.0,3126.9,1.07829248]
[1767372479578,3.23792931,3129.0,3127.2,2.3186328]
[1767372479782,3.19798045,3129.0,3127.2,2.3186328]
[1767372479976,0.002,3129.0,3127.2,2.3186328]
[1767372480285,0.04195014,3128.9,3127.4,2.3186328]
[1767372480443,0.002,3128.9,3127.5,0.31556328]
[1767372480646,0.002,3128.9,3127.5,2.63419608]
[1767372480861,0.002,3128.9,3127.6,0.837]
[1767372481180,0.002,3128.9,3127.6,3.1556328]
[1767372481485,0.002,3128.9,3127.6,6.35296206]
[1767372481486,6.22e-06,3128.9,3127.6,6.35296206]
[1767372481780,2.33325132,3128.8,3127.4,0.837]
[1767372482147,2.33325132,3128.7,3127.0,3.19786763]
[1767372482343,0.03995269,3128.7,3127.4,2.3186328]
[1767372482547,6.22e-06,3128.9,3127.7,2.3186328]
[1767372482776,6.22e-06,3128.9,3127.9,2.3186328]
[1767372482941,6.22e-06,3128.9,3128.1,2.3186328]
[1767372483141,6.22e-06,3128.9,3128.0,0.31556328]
[1767372483365,6.22e-06,3128.9,3127.4,0.837]
[1767372483571,6.39222704,3128.8,3127.4,0.837]
[1767372483779,9.58834056,3128.8,3127.1,2.3186328]
[1767372483947,9.58834056,3128.8,3126.9,3.19797988]
[1767372483948,2.37320401,3128.7,3126.9,3.19797988]
[1767372484152,2.37320401,3128.7,3127.1,3.19784948]
[1767372484153,3.52940578,3128.6,3127.1,3.19784948]
[1767372484347,1.19615446,3128.6,3127.2,2.3186328]
[1767372484560,2.37320657,3128.5,3127.0,0.31979799]
[1767372484857,2.37320657,3128.5,3126.9,0.837]
[1767372485052,0.03995525,3128.5,3126.5,5.3745711]
[1767372485251,2.33325132,3128.7,3126.7,2.3186328]
[1767372485550,9.58834056,3128.8,3126.7,2.3186328]
[1767372485551,11.92281786,3128.4,3126.7,2.3186328]
[1767372485755,2.33325132,3128.2,3126.7,2.3186328]
[1767372485964,1.27598179,3128.2,3126.9,2.3186328]
[1767372486283,0.03996035,3128.1,3126.9,0.836]
[1767372486503,2.33325132,3128.1,3126.4,0.836]
[1767372486798,2.33325132,3127.9,3126.2,0.00803432]
[1767372486951,2.33325132,3127.9,3126.4,0.836]
[1767372487149,5.5297735,3128.4,3126.6,2.3186328]
[1767372487352,3.19652218,3128.4,3126.9,2.3186328]
[1767372487579,2.33325132,3128.6,3127.1,2.3186328]
[1767372487784,2.33325132,3128.6,3127.1,3.1546328]
[1767372488284,4.03308448,3128.9,3127.4,2.3186328]
[1767372488485,6.22e-06,3128.9,3127.6,25.569067]
[1767372488652,6.3920295,3128.9,3127.5,0.23186328]
[1767372488861,3.19601786,3128.9,3127.5,0.84400916]
[1767372489066,6.3920295,3128.9,3127.5,0.836]
[1767372489269,6.3920295,3128.9,3127.2,2.3186328]
[1767372489491,6.3920295,3128.9,3127.3,0.00801312]
[1767372489681,2.33325132,3128.8,3127.2,3.1546328]
[1767372489889,0.23732077,3128.7,3127.2,3.1546328]
[1767372490106,0.002,3128.1,3127.2,3.1546328]
[1767372490465,0.002,3128.1,3126.7,3.19818435]
[1767372490466,0.002,3128.1,3126.8,0.836]
[1767372490665,0.002,3128.1,3126.9,0.00802794]
[1767372490976,0.002,3128.1,3126.8,3.16265985]
[1767372491308,0.002,3128.1,3126.9,0.31626598]
[1767372492281,0.002,3128.1,3126.9,0.836]
[1767372492771,0.002,3128.1,3126.9,3.16266087]
[1767372493090,0.002,3128.1,3127.0,2.3186328]
[1767372493292,0.002,3128.1,3127.2,2.3186328]
[1767372493477,3.19611352,3128.8,3127.3,2.32665512]
[1767372493792,6.22e-06,3128.9,3127.6,2.3186328]
[1767372494010,6.22e-06,3128.9,3127.7,0.00800749]
[1767372494195,6.22e-06,3128.9,3127.7,2.32664029]
[1767372494714,0.002,3129.4,3128.2,2.3186328]
[1767372494715,6.22e-06,3129.0,3128.2,2.3186328]
[1767372495225,6.22e-06,3129.0,3128.2,0.836]
[1767372495597,6.22e-06,3129.0,3127.8,0.00799919]
[1767372495598,6.22e-06,3129.0,3127.9,2.3186328]
[1767372495787,6.22e-06,3129.0,3128.2,0.836]
[1767372496417,6.22e-06,3129.0,3128.3,2.3186328]
[1767372497797,2.33325132,3130.4,3128.5,2.3186328]
[1767372498396,2.33325132,3130.4,3128.7,2.3186328]
[1767372498397,3.03188225,3130.2,3128.7,2.3186328]
[1767372498612,3.03388225,3130.2,3128.8,2.63409608]
[1767372498808,3.03388225,3130.2,3128.8,0.31546328]
[1767372498809,2.33325132,3130.1,3128.8,0.31546328]
[1767372499010,2.33325132,3129.9,3128.0,3.74927247]
[1767372499219,2.33325132,3129.7,3128.0,0.55237302]
[1767372499424,2.37319252,3129.6,3127.8,2.3186328]
[1767372499724,11.91944718,3129.5,3127.9,0.836]
[1767372500217,8.72404856,3129.5,3128.0,2.32662918]
[1767372500611,8.72404856,3129.5,3128.1,0.836]
[1767372500812,3.19539862,3129.5,3128.2,2.32662637]
[1767372501020,6.39079724,3129.5,3128.3,0.31626264]
[1767372501198,0.03994375,3129.4,3128.4,0.836]
[1767372501403,0.03994375,3129.4,3127.7,5.51580372]
[1767372501611,2.37319507,3129.4,3127.8,0.836]
[1767372501925,2.33325132,3129.2,3127.4,0.23266551]
[1767372502127,2.33325132,3129.2,3127.6,2.3186328]
[1767372502426,0.03994758,3129.1,3127.7,0.836]
[1767372502607,0.03994886,3129.0,3127.8,0.836]
[1767372502805,2.37320018,3129.0,3127.4,0.23266551]
[1767372503029,2.33325132,3128.8,3127.4,0.836]
[1767372503192,2.33325132,3128.8,3127.5,0.00801222]
[1767372503394,2.33325132,3128.8,3127.4,0.836]
[1767372503708,6.39243136,3128.7,3127.4,0.836]
[1767372503909,6.39243136,3128.7,3127.5,2.3266454]
[1767372503910,3.19621568,3128.7,3127.5,2.3266454]
[1767372504113,5.529467,3128.7,3127.6,0.63601731]
[1767372504328,2.33325132,3128.6,3127.6,0.63601731]
[1767372504527,2.33325132,3128.6,3127.3,0.836]
[1767372505025,6.39243136,3128.7,3127.4,2.3186328]
[1767372505224,0.63924314,3128.6,3127.4,3.38729765]
[1767372505619,0.63924314,3128.6,3128.4,0.001]
[1767372505826,6.39284,3128.5,3127.4,3.38729765]
[1767372506029,2.33325132,3128.4,3127.1,0.001]
[1767372506328,2.33325132,3128.2,3127.1,0.001]
[1767372506924,0.837,3128.1,3127.1,0.001]
[1767372507708,3.19642,3128.5,3127.1,3.373]
[1767372507910,6.39284,3128.5,3127.2,6.42409036]
[1767372508128,6.39284,3128.5,3127.3,0.64250904]
[1767372508627,3.19642,3128.5,3127.4,2.39042507]
[1767372508830,6.39284,3128.5,3127.4,2.39042507]
[1767372509334,3.19642,3128.5,3127.4,2.39042507]
[1767372509708,6.39284,3128.5,3127.4,2.39042507]
[1767372509907,6.39263568,3128.6,3127.5,0.30329341]
[1767372510935,9.62890749,3128.6,3127.4,0.836]
[1767372511234,6.39263568,3128.6,3127.4,0.836]
[1767372511432,4.03325511,3128.7,3127.4,2.43535354]
[1767372511636,3.19570497,3129.2,3127.6,2.43535354]
[1767372511930,6.39181846,3129.0,3127.6,2.43535354]
[1767372512129,2.35757675,3128.9,3127.6,2.43535354]
[1767372512432,2.35757675,3128.9,3127.2,0.00800533]
[1767372512433,2.39752689,3128.9,3127.4,6.46887199]
[1767372512643,3.19590923,3129.0,3127.5,2.43535354]
[1767372512835,6.39181846,3129.0,3127.6,3.53322792]
[1767372513010,3.19590923,3129.0,3127.7,3.19720228]
[1767372514034,3.1958071,3129.1,3127.7,3.19720228]
[1767372514233,3.1958071,3129.1,3127.8,0.00800379]
[1767372514434,7.03065259,3129.1,3127.9,0.32052061]
[1767372514839,9.38822934,3129.1,3127.6,3.5252555]
[1767372515021,2.39752561,3129.0,3127.6,0.32793641]
[1767372515330,2.35757675,3129.0,3127.7,0.836]
[1767372515906,7.03065259,3129.1,3127.9,2.43535354]
[1767372515907,3.83484549,3129.1,3127.9,2.43535354]
[1767372516109,7.03065259,3129.1,3128.0,2.43535354]
[1767372516434,0.82671412,3129.0,3127.7,0.836]
[1767372516641,0.82671412,3129.0,3127.6,0.32793641]
[1767372516642,2.35757675,3128.9,3127.6,0.32793641]
[1767372516839,2.35757675,3128.9,3127.4,2.43635354]
[1767372516840,2.35757675,3128.8,3127.4,0.001]
[1767372517016,2.35757675,3128.6,3127.4,0.001]
[1767372517218,2.71698968,3128.5,3127.4,0.001]
[1767372517842,0.31945768,3128.5,3127.4,0.001]
[1767372518051,3.19646793,3128.5,3127.4,3.19854377]
[1767372518214,6.39293586,3128.5,3127.4,0.001]
[1767372518723,2.39753327,3128.4,3127.4,0.001]
[1767372518923,2.35757675,3128.4,3127.4,0.001]
[1767372519122,3.19646793,3128.5,3127.4,0.001]
[1767372519342,6.39293586,3128.5,3127.5,2.75521563]
[1767372519921,6.39293586,3128.5,3127.4,0.001]
[1767372519922,3.19662436,3128.3,3127.4,0.001]
[1767372520168,6.39324872,3128.3,3127.6,0.001]
[1767372520347,2.39753583,3128.2,3127.1,0.001]
[1767372521256,2.35757675,3128.0,3127.1,0.001]
[1767372521451,0.74822478,3127.9,3127.1,0.001]
[1767372521920,0.74822478,3127.9,3126.4,0.001]
[1767372521921,6.39447516,3127.7,3126.4,0.001]
[1767372522246,2.35757675,3127.5,3126.4,0.001]
[1767372523223,2.35757675,3127.5,3125.9,0.001]
[1767372523420,2.35757675,3127.0,3125.9,0.001]
[1767372523639,0.837,3126.9,3125.9,0.001]
[1767372524063,3.19811767,3126.9,3125.9,0.001]
[1767372524275,4.03511767,3126.9,3125.9,2.43635354]
[1767372524492,0.837,3126.9,3125.9,2.43635354]
[1767372524776,0.837,3127.5,3126.1,2.43535354]
[1767372524976,0.837,3127.5,3126.2,2.43535354]
[1767372525346,2.35757675,3127.4,3126.0,0.24373535]
[1767372525548,2.35757675,3127.4,3125.9,0.001]
[1767372526065,2.35757675,3127.2,3125.9,0.001]
[1767372526568,2.35757675,3127.2,3125.8,0.001]
[1767372526764,2.35757675,3127.2,3125.7,3.19924624]
[1767372527072,2.35757675,3127.2,3125.6,6.47069448]
[1767372527275,2.35757675,3127.0,3125.6,2.43535354]
[1767372527447,3.19457675,3126.9,3125.2,2.43535354]
[1767372527666,2.35757675,3126.8,3125.2,2.43535354]
[1767372527860,2.35757675,3126.8,3125.2,2.44341921]
[1767372528172,6.39672486,3126.6,3125.9,0.001]
[1767372528546,6.39672486,3126.6,3125.2,2.43535354]
[1767372529164,8.75430161,3126.6,3125.2,2.43535354]
[1767372529776,2.35757675,3126.5,3125.2,2.43535354]
[1767372529977,3.19457675,3126.4,3125.2,2.43535354]
[1767372530154,3.19457675,3126.4,3125.1,0.001]
[1767372530155,3.19877167,3126.2,3125.1,0.001]
[1767372530349,3.51814051,3126.3,3125.1,2.43635354]
[1767372530777,3.51820089,3126.3,3125.1,2.43635354]
[1767372531143,6.7169441,3126.3,3125.1,2.43635354]
[1767372531345,2.35757675,3126.2,3125.1,0.001]
[1767372531661,1.22732641,3126.1,3124.8,2.43635354]
[1767372531845,2.06432641,3126.1,3124.9,0.0080745]
[1767372532044,0.837,3126.5,3124.9,2.43535354]
[1767372532240,2.35757675,3127.3,3125.3,2.43535354]
[1767372532468,0.838,3127.2,3125.5,2.43535354]
[1767372532678,0.838,3127.2,3125.7,2.43535354]
[1767372532970,6.39488408,3127.5,3125.9,2.43535354]
[1767372532971,3.19744204,3127.5,3125.9,2.43535354]
[1767372533170,3.19744204,3127.5,3126.1,2.43535354]
[1767372533171,7.23288408,3127.5,3126.1,2.43535354]
[1767372533376,14.71513184,3127.5,3126.0,0.24434073]
[1767372533574,14.71513184,3127.5,3125.7,0.837]
[1767372533575,2.39754605,3127.4,3125.7,0.837]
[1767372534149,6.39529306,3127.3,3125.9,5.6344322]
[1767372534657,6.39529306,3127.3,3126.0,2.43535354]
[1767372534658,3.19764653,3127.3,3126.0,2.43535354]
[1767372534857,3.19764653,3127.3,3126.1,0.0080484]
[1767372535188,0.002,3127.0,3126.0,2.43535354]
[1767372535478,0.002,3127.0,3126.1,2.99879676]
[1767372535673,0.002,3127.0,3126.1,0.56344322]
[1767372535872,0.002,3127.0,3125.8,0.837]
[1767372536061,0.002,3127.0,3125.8,3.19915824]
[1767372536244,0.002,3127.0,3125.8,4.03615824]
[1767372537172,0.002,3127.0,3125.8,4.03617891]
[1767372537476,7.48424776,3127.0,3125.6,2.43535354]
[1767372537668,3.14597722,3126.9,3125.4,3.19953441]
[1767372537868,0.838,3126.8,3125.4,3.19953441]
[1767372538459,0.838,3126.8,3125.2,4.03678385]
[1767372538460,3.19826014,3126.7,3125.3,8.84279074]
[1767372538773,0.03997953,3126.6,3125.3,3.27235354]
[1767372539004,0.64364998,3126.5,3125.3,2.43535354]
[1767372539205,0.64364998,3126.5,3125.1,3.1998723]
[1767372539582,0.64364998,3126.5,3125.2,3.1997704]
[1767372539985,0.74842478,3126.9,3125.4,2.42198878]
[1767372540208,3.19996023,3127.0,3125.6,2.42198878]
[1767372540409,0.002,3127.0,3125.8,5.621112]
[1767372540581,0.04197441,3127.0,3125.8,2.42198878]
[1767372540781,0.002,3127.0,3125.8,2.42198878]
[1767372540979,0.002,3127.0,3126.0,2.42198878]
[1767372541208,3.30757653,3127.8,3126.2,2.42198878]
[1767372541414,6.39447516,3127.7,3126.2,2.42198878]
[1767372541988,2.47157653,3128.3,3126.2,2.42198878]
[1767372542192,0.002,3127.8,3126.2,2.42198878]
[1767372542409,0.002,3127.8,3126.4,2.42198878]
[1767372542740,0.002,3127.8,3126.6,2.42198878]
[1767372544481,0.002,3127.8,3126.8,2.42198878]
[1767372545385,0.002,3127.8,3126.7,6.39652028]
[1767372545579,0.002,3127.8,3126.8,19.734482]
[1767372545889,0.002,3127.8,3126.7,8.81850906]
[1767372546081,0.002,3127.8,3126.8,1.71885091]
[1767372546720,0.002,3127.8,3126.9,6.39611116]
[1767372547021,0.002,3127.8,3126.9,3.19805558]
[1767372547191,0.002,3127.8,3126.9,5.62004436]
[1767372547524,0.002,3127.8,3127.0,0.837]
[1767372547710,0.002,3127.8,3126.9,2.42198878]
[1767372547910,0.002,3127.8,3126.5,1.20179968]
[1767372548120,0.002,3127.8,3126.4,2.43002491]
[1767372548323,2.51154072,3127.8,3126.4,2.42198878]
[1767372548617,0.002,3127.8,3126.5,2.42198878]
[1767372548788,0.002,3127.8,3126.5,2.4300258]
[1767372548979,3.19915962,3127.8,3126.5,2.42198878]
[1767372549301,0.56687362,3127.7,3126.5,2.42198878]
[1767372549500,0.56687362,3127.7,3126.7,2.42198878]
[1767372549703,0.002,3127.8,3126.9,2.42198878]
[1767372550282,3.23911251,3127.8,3126.4,2.42198878]
[1767372550482,2.46957653,3127.7,3126.4,2.42198878]
[1767372550682,0.002,3127.8,3126.6,2.42198878]
[1767372550882,0.002,3127.8,3126.7,2.43002298]
[1767372551078,0.002,3127.8,3126.7,2.42198878]
[1767372551306,0.002,3127.8,3126.9,2.42198878]
[1767372551531,0.002,3127.8,3127.0,2.43001953]
[1767372551686,0.002,3128.3,3127.0,2.43001953]
[1767372551885,0.002,3128.3,3127.2,2.42198878]
[1767372552730,0.002,3128.3,3127.3,7.23229306]
[1767372552886,0.002,3128.3,3127.4,2.42198878]
[1767372553201,0.837,3128.9,3127.4,2.42198878]
[1767372553406,0.002,3129.1,3127.4,2.42198878]
[1767372553717,0.002,3129.1,3127.6,2.42198878]
[1767372554221,0.002,3129.1,3127.9,20.773165]
[1767372554381,0.002,3129.1,3128.1,2.42198878]
[1767372554788,0.002,3129.1,3128.3,2.42198878]
[1767372555182,0.002,3129.1,3128.2,0.836]
[1767372555384,0.002,3129.1,3127.8,2.42198878]
[1767372555605,0.24915765,3129.1,3127.8,2.42198878]
[1767372555793,2.75868176,3129.1,3127.7,0.836]
[1767372555994,0.002,3129.1,3128.2,2.42198878]
[1767372556489,0.002,3129.1,3128.2,3.25798878]
[1767372556733,0.83600103,3129.9,3128.5,2.42198878]
[1767372556878,2.50951518,3129.8,3128.2,2.42198878]
[1767372557083,5.66629323,3130.2,3128.4,2.42198878]
[1767372557310,5.66629323,3130.2,3128.3,9.58985701]
[1767372557311,0.56662932,3130.1,3128.6,2.42198878]
[1767372557715,0.002,3130.2,3128.8,2.42198878]
[1767372557937,0.002,3130.2,3129.0,2.42198878]
[1767372558125,0.002,3130.2,3129.2,2.42198878]
[1767372558730,0.002,3130.2,3129.3,6.3912057]
[1767372558920,0.002,3130.2,3129.2,6.45365394]
[1767372559116,0.002,3130.2,3129.2,3.06735417]
[1767372559315,0.002,3130.2,3129.0,0.836]
[1767372559536,2.47157653,3130.2,3128.5,3.19632939]
[1767372559707,2.51151008,3130.2,3128.6,0.836]
[1767372559908,2.51151008,3130.2,3128.4,2.42198878]
[1767372560110,2.72072754,3130.1,3128.8,3.19609215]
[1767372560338,0.002,3130.2,3128.9,2.42198878]
[1767372560538,0.002,3130.2,3129.1,2.42198878]
[1767372560738,0.002,3130.2,3128.6,2.42198878]
[1767372560938,0.002,3130.2,3128.8,2.42198878]
[1767372561443,0.002,3130.4,3129.3,2.42198878]
[1767372561610,3.19302673,3131.9,3128.7,18.97990591]
[1767372561611,2.46957653,3131.6,3129.7,2.42198878]
[1767372561812,2.46957653,3131.6,3129.4,1.07819888]
[1767372561813,2.46957653,3131.6,3129.9,2.42198878]
[1767372562219,6.38874506,3131.5,3129.9,2.42198878]
[1767372562509,0.002,3131.7,3130.3,2.42198878]
[1767372562734,0.002,3131.7,3130.7,2.42198878]
[1767372562964,0.002,3131.7,3130.2,2.42198878]
[1767372563126,0.04191442,3131.7,3130.2,2.42198878]
[1767372563307,0.002,3131.7,3130.6,2.42198878]
[1767372563649,0.002,3131.7,3130.1,2.42198878]
[1767372563820,2.51149095,3131.7,3129.7,5.61718205]
[1767372564144,2.46957653,3131.5,3129.8,2.42198878]
[1767372564336,2.46957653,3131.3,3129.8,2.42198878]
[1767372564536,2.46957653,3131.3,3129.3,3.19553245]
[1767372564537,2.46957653,3131.1,3129.3,2.42198878]
[1767372564860,2.46957653,3131.0,3129.5,2.42198878]
[1767372565157,8.8035383,3131.6,3129.5,2.42198878]
[1767372565158,2.46957653,3131.2,3129.5,2.42198878]
[1767372565446,2.46957653,3131.0,3129.4,0.24219888]
[1767372565644,2.46957653,3131.0,3129.4,2.42198878]
[1767372565645,2.50949987,3131.0,3129.4,2.42198878]
[1767372565951,2.50949987,3131.0,3128.9,2.42198878]
[1767372566117,2.50949987,3131.0,3129.0,0.836]
[1767372566437,2.50949987,3131.0,3128.9,2.42198878]
[1767372566951,2.46957653,3130.5,3128.7,0.836]
[1767372567136,2.36716984,3130.0,3128.7,0.33430245]
[1767372567337,0.03993737,3129.9,3128.2,3.19664532]
[1767372567646,1.61986425,3130.4,3128.2,3.19664532]
[1767372567647,0.78286425,3130.4,3128.6,2.26482566]
[1767372567816,0.837,3130.3,3128.8,2.26482566]
[1767372568216,0.03993355,3130.2,3128.8,2.26482566]
[1767372568548,0.837,3130.3,3128.8,2.26482566]
[1767372568844,11.95214059,3129.9,3128.3,2.26482566]
[1767372569076,11.95214059,3129.9,3128.3,3.10082566]
[1767372569213,0.38051307,3129.8,3128.4,0.31008257]
[1767372569414,0.837,3129.7,3128.4,0.31008257]
[1767372569614,0.38051307,3129.8,3128.5,2.34273597]
[1767372569814,8.75715034,3129.9,3128.5,2.34273597]
[1767372570346,8.75715034,3129.9,3128.5,2.33474662]
[1767372570550,3.19499025,3129.9,3128.7,2.33474662]
[1767372570743,6.38936808,3130.2,3128.8,2.33474662]
[1767372570942,10.55436769,3130.2,3128.9,0.23347466]
[1767372571331,12.99122429,3130.2,3128.9,0.23347466]
[1767372571531,2.47679142,3130.1,3128.4,0.31008257]
[1767372571725,2.47679142,3130.1,3128.6,2.33474662]
[1767372571726,2.4368566,3130.1,3128.6,2.33474662]
[1767372571930,0.837,3130.0,3128.6,2.33474662]
[1767372572721,2.4368566,3129.9,3128.5,0.84398131]
[1767372572922,2.4368566,3129.7,3128.3,3.19656618]
[1767372573232,3.2738566,3129.7,3128.4,0.55313128]
[1767372573540,0.837,3129.7,3128.4,2.34273392]